Cogmind - Beta 14 @@@ ROGUE MODE // 2025.01.16 @ 12:07:56 Player: celerysam Result: Destroyed by Q0-6UC(R) with Subdweller Laser Performance ------------- Evolutions (0) 0 Regions Visited (2) 400 Robots Destroyed (5) 25 Value Destroyed (50) 50 Prototype IDs (0) 0 Alien Tech Used (0) 0 Bonus (0) 0 TOTAL SCORE: 475 Bonus ------- None Cogmind --------- Core Integrity 0/250 Matter 300/300 Energy 1/100 System Corruption 0% Temperature Cool (6) Movement Walking (120) Location -10/Subcaves Parts ------- > --- POWER (1) -------- (None) > --- PROPULSION (2) --- Aluminum Leg > --- UTILITY (2) ------ Small Storage Unit ECM Suite > --- WEAPON (2) ------- Mining Claw > --- INVENTORY (8) ---- Light Treads Light Treads Makeshift Light Armor Plating Assault Rifle Light Cannon Makeshift Axe Peak State ------------ > --- POWER ------------ Ion Engine > --- PROPULSION ------- Aluminum Leg Compact Wheel > --- UTILITY ---------- Small Storage Unit ECM Suite > --- WEAPON ----------- Assault Rifle Mining Claw > --- INVENTORY -------- Light Treads Light Treads Aluminum Leg Medium Laser Assault Rifle Light Cannon [Rating: 7] Favorites ----------- Power Ion Engine Engine Ion Engine Propulsion Compact Wheel Leg Aluminum Leg Wheel Compact Wheel Utility Small Storage Unit Device ECM Suite Storage Small Storage Unit Weapon Assault Rifle Energy Gun Medium Laser Ballistic Gun Assault Rifle Slashing Weapon Mining Claw Build | -11 -10 -10 ------- Run | Yrd Mat Sub Slots Evolved . | . . . Power . | . . . Propulsion . | . . . Utility . | . . . Weapon . | . . . Parts Attached 12 | 5 4 3 Power 2 | . 2 . Engine 2 | . 2 . Core . | . . . Reactor . | . . . Propulsion 4 | 2 . 2 Treads . | . . . Leg 2 | . . 2 Wheel 2 | 2 . . Hover . | . . . Flight . | . . . Utility 2 | 1 1 . Device 1 | . 1 . Storage 1 | 1 . . Processor . | . . . Hackware . | . . . Protection . | . . . Artifact . | . . . Weapon 4 | 2 1 1 Energy Gun 2 | 1 . 1 Energy Cannon . | . . . Ballistic Gun 1 | 1 . . Ballistic Cannon . | . . . Launcher . | . . . Special Weapon . | . . . Impact Weapon . | . . . Slashing Weapon 1 | . 1 . Piercing Weapon . | . . . Special Melee Weapon . | . . . Unidentified Prototypes . | . . . Parts Lost 7 | . 2 5 Power 2 | . 1 1 Propulsion 3 | . 1 2 Utility . | . . . Weapon 2 | . . 2 Highest Loss Streak 4 | . 2 4 To Critical Strikes . | . . . Average Slot Usage (%) 76 | . 75 79 Engine 7 | . 6 7 Leg 2 | . . 10 Wheel 20 | . 25 7 Device 4 | . . 14 Storage 14 | . 14 14 Energy Gun 11 | . 13 5 Ballistic Gun 11 | . 14 4 Slashing Weapon 4 | . . 14 Peak Build Rating 7 | 5 6 7 Average Rating 5 | 4 5 5 On Entrance 3 | . 5 6 Naked Turns . | . . . Heaviest Build 16 | 9 16 16 Greatest Support 32 | 32 32 16 Greatest Overweight (x) 1 | 1 . 1 Average Overweight (x) . | . . . Largest Inventory Capacity 8 | 8 8 8 Average Capacity 7 | 7 8 8 Most Carried 8 | 7 8 7 Average Carried 6 | 6 7 5 Final Capacity 8 | 8 8 8 Final Carried 7 | 7 7 6 Class Distribution -------------------- 100% | Mutant Dominant Class ---------------- Mutant | -10/Materials Mutant | -10/Subcaves Resources | -11 -10 -10 ----------- Run | Yrd Mat Sub Matter Collected 329 | 245 41 43 Remotely . | . . . Salvage Created 74 | . 74 . Parts 10 | . 10 . Haulers Intercepted . | . . . Recyclers Shooed . | . . . Parts Field Recycled . | . . . Retrieved Matter . | . . . Parts Self-Destructed . | . . . Prevented . | . . . Kills | -11 -10 -10 ------- Run | Yrd Mat Sub Combat Hostiles Destroyed 5 | . 5 . Guns 5 | . 5 . Classes Destroyed 1 | . 1 . Swarmer 5 | . 5 . Best Kill Streak 5 | . 5 . Combat Bots Only 5 | . 5 . Max Kills in Single Turn 2 | . 2 . Gunslinging 1 | . 1 . Exploded . | . . . Melee . | . . . Uniques/NPCs Destroyed . | . . . Combat | -11 -10 -10 -------- Run | Yrd Mat Sub Hostile Shots Fired 90 | . 51 39 Missed 20 | . 11 9 Damage Taken 1025 | . 314 711 Core 266 | . 47 219 Absorbed by Shields . | . . . Core Remaining (%) 100 | 100 . . Volleys Fired 13 | . 13 . Largest 2 | . 2 . Hottest 70 | . 70 . Shots Fired 26 | . 26 . Gun 26 | . 26 . Cannon . | . . . Launcher . | . . . Special . | . . . Kinetic 13 | . 13 . Thermal 13 | . 13 . Explosive . | . . . Electromagnetic . | . . . Robot Hit Streak 3 | . 3 . Robot Miss Streak 4 | . 4 . Penetration Max . | . . . Secondary Targets 1 | . 1 . Max Gunslinging Chain 1 | . 1 . Shots Hit Robots 12 | . 10 2 Core Hits 6 | . 5 1 Critical Kills . | . . . Critical Parts Destroyed . | . . . Critical Strikes . | . . . Melee Attacks 11 | . 4 7 Impact . | . . . Slashing 11 | . 4 7 Piercing . | . . . Sneak Attacks . | . . . Combat Hostiles . | . . . Follow-up Attacks . | . . . Damage Inflicted 153 | . 129 24 Guns 129 | . 129 . Cannons . | . . . Explosions . | . . . Melee 24 | . . 24 Ramming . | . . . Kinetic 54 | . 54 . Thermal 75 | . 75 . Explosive . | . . . Electromagnetic . | . . . Impact . | . . . Slashing 24 | . . 24 Piercing . | . . . Highest Corruption . | . . . Average Corruption . | . . . Corruption Purged . | . . . Corruption Blocked . | . . . Overload Shots . | . . . Overflow Damage . | . . . Projectiles . | . . . Explosions . | . . . Melee . | . . . Knockbacks . | . . . Impact . | . . . Kinetic . | . . . Secondary . | . . . Self-Inflicted Damage . | . . . Shots . | . . . Rammed . | . . . Targets Rammed . | . . . Kicked . | . . . Crushed . | . . . Highest Temperature 30 | . 30 . Average Temperature 12 | . 12 . Received Heat Transfer 126 | . . 126 Siege Activations . | . . . Robots Corrupted . | . . . Combat Hostiles . | . . . Parts Fried . | . . . Impact Corruptions . | . . . Robots Melted . | . . . Combat Hostiles . | . . . Parts Melted . | . . . Heat Transferred 222 | . 222 . Parts Sabotaged . | . . . Parts Stolen . | . . . Parts Stripped . | . . . Power Chain Reactions . | . . . Alert | -11 -10 -10 ------- Run | Yrd Mat Sub Peak Influence 176 | . 176 . Initial . | . . . Average 16 | . 40 . Maximum Alert Level . | . . . Low Security (%) 100 | 100 100 . Level 1 . | . . . Level 2 . | . . . Level 3 . | . . . Level 4 . | . . . Level 5 . | . . . High Security . | . . . Max Security . | . . . Squads Dispatched 1 | . 1 . Investigation . | . . . Extermination . | . . . Reinforcement 1 | . 1 . Assault . | . . . Garrison . | . . . Intercept . | . . . Searches Triggered . | . . . Construction Impeded . | . . . Haulers Reinforced . | . . . Active Scanning Responses . | . . . Cargo Convoy Interrupts . | . . . Stealth | -11 -10 -10 --------- Run | Yrd Mat Sub Distress Signals 1 | . 1 . Communications Jammed . | . . . Distress Signals . | . . . Times Spotted 23 | . 11 12 Peak Tracking Total 8 | . 8 6 Tactical Retreats 3 | . 1 2 Traps | -11 -10 -10 ------- Run | Yrd Mat Sub Traps Triggered . | . . . Indirectly . | . . . Trap Hack Attempts . | . . . Triggered . | . . . Disarmed . | . . . Reprogrammed . | . . . Reused . | . . . Traps Extracted . | . . . Installed . | . . . Triggered . | . . . Machines | -11 -10 -10 ---------- Run | Yrd Mat Sub Machines Disabled . | . . . Max in Single Turn . | . . . Machines Repaired . | . . . Machines Dismantled . | . . . Machines Sabotaged . | . . . Overloaded Fab Kills . | . . . Hacking | -11 -10 -10 --------- Run | Yrd Mat Sub Machines Accessed 3 | . 3 . Terminals 3 | . 3 . Fabricators . | . . . Repair Stations . | . . . Recycling Units . | . . . Scanalyzers . | . . . Garrison Access . | . . . Total Hacks 5 | . 5 . Successful 1 | . 1 . Failed 4 | . 4 . Catastrophic . | . . . Database Lockouts . | . . . Manual 4 | . 4 . Terminals 5 | . 5 . Fabricators . | . . . Repair Stations . | . . . Recycling Units . | . . . Scanalyzers . | . . . Garrison Access . | . . . Terminal Hacks 1 | . 1 . Emergency Access Points 1 | . 1 . Fabricator Hacks . | . . . Repair Station Hacks . | . . . Recycling Unit Hacks . | . . . Scanalyzer . | . . . Garrison Access Hacks . | . . . Unauthorized Hacks . | . . . Terminals . | . . . Fabricators . | . . . Repair Stations . | . . . Recycling Units . | . . . Scanalyzers . | . . . Garrison Access . | . . . Data Cores Recovered . | . . . Used . | . . . Hacking Detections 2 | . 2 . Full Trace Events . | . . . Feedback Events . | . . . Feedback Blocked . | . . . Robot Schematics Acquired . | . . . Robots Built . | . . . Authchips . | . . . Time . | . . . Total Robot Build Rating . | . . . Part Schematics Acquired . | . . . Parts Built . | . . . Authchips . | . . . Time . | . . . Total Part Build Rating . | . . . Parts Repaired . | . . . Time . | . . . Parts Recycled . | . . . Recycled Matter . | . . . Retrieved Matter . | . . . Retrieved Components . | . . . Parts Scanalyzed . | . . . Part Schematics Acquired . | . . . Parts Damaged . | . . . Bothacking | -11 -10 -10 ------------ Run | Yrd Mat Sub Used RIF Installer . | . . . Robots Hacked . | . . . Non-combat . | . . . Combat . | . . . Robot Hacks Applied . | . . . Relay Couplers Released . | . . . Fabnet Peak Effective % . | . . . Robots Rewired . | . . . Allies Hacked . | . . . Hacks Repelled . | . . . Allies | -11 -10 -10 -------- Run | Yrd Mat Sub Total Allies . | . . . Largest Group . | . . . Highest-Rated Group . | . . . Highest-Rated Ally . | . . . Total Orders . | . . . Ally Attacks . | . . . Total Damage . | . . . Kills . | . . . Allies Corrupted . | . . . Allies Melted . | . . . Intel | -11 -10 -10 ------- Run | Yrd Mat Sub Robot Analysis Total . | . . . Derelict Logs Recovered . | . . . Drone Launches . | . . . Drone Recoveries . | . . . Exploration | -11 -10 -10 ------------- Run | Yrd Mat Sub Turns Passed 1171 | 596 422 153 Spaces Moved 623 | 160 352 111 Core 13 | 13 . . Treads . | . . . Legs 27 | . . 27 Wheels 583 | 147 352 84 Hover . | . . . Flight . | . . . Fastest Speed 50 | 50 100 100 Average Speed 102 | 97 100 114 Slowest Speed 190 | 100 100 190 Overloaded Moves . | . . . Propulsion Burnouts . | . . . Robots Hopped . | . . . Cave-ins Triggered . | . . . Exploration Rate (%) 36 | 17 78 14 Regions Visited 2 Branch Regions 1 Pre-discovered Areas . | . . . Known Exits Taken . | . . . Unknown Exits Taken 2 | 1 1 . Scrap Searched . | . . . Spaces Dug 2 | . 2 . Terrain Destroyed 2 | . 2 . Melee 2 | . 2 . Projectile . | . . . AOE . | . . . Terrain Rammed . | . . . Walls Destroyed . | . . . Machines Disabled . | . . . Actions | -11 -10 -10 --------- Run | Yrd Mat Sub Total 1110 | 599 388 123 Wait 434 | 423 11 . Move 621 | 159 351 111 Hop . | . . . Pick Up 18 | 12 4 2 Fast Attach . | . . . Attach 11 | 5 3 3 Detach . | . . . Swap 1 | . 1 . Drop 1 | . 1 . Fire 13 | . 13 . Melee 11 | . 4 7 Ram . | . . . Kick . | . . . Crush . | . . . Escape Stasis . | . . . Rewire . | . . . Trap . | . . . Miscellaneous . | . . . Route ------- -11/Scrapyard -10/Materials (discovered 4 exits: [*Mat x3] / [*Sub]) -10/Subcaves History --------- Turn | Location | Event 25 | -11/Scrapyard | Discovered new exit (range 15) 597 | -11/Scrapyard | Entered Materials 598 | -10/Materials | Build established: Mutant 681 | -10/Materials | Discovered new exit (range 13) 876 | -10/Materials | Discovered new exit (range 7) 985 | -10/Materials | Discovered new exit (range 16) 1015 | -10/Materials | Discovered new exit (range 3) 1019 | -10/Materials | Entered Subcaves 1039 | -10/Subcaves | A Subdweller sparked back to life 1039 | -10/Subcaves | A Subdweller sparked back to life 1039 | -10/Subcaves | A Subdweller sparked back to life 1073 | -10/Subcaves | Core integrity fell below 50% 1129 | -10/Subcaves | Shifting Twisted Machinery released Mak. Axe 1139 | -10/Subcaves | Lost 4 parts (1p2n1w) 1149 | -10/Subcaves | Shifting Twisted Machinery released Mak. Light Armor Plating 1171 | -10/Subcaves | Core integrity fell below 20% 1172 | -10/Subcaves | Destroyed by Q0-6UC(R) with Subdweller Laser Last Messages --------------- 01039_ 5H-009(R) creaks and sparks as it begins to move. 01039_ MT-VIC(R) creaks and sparks as it begins to move. 01039_ 0H-P2M(R) creaks and sparks as it begins to move. 01062_ Assault Rifle destroyed. 01086_ Aluminum Leg destroyed. 01099_ Acquired 10 matter. 01101_ Acquired 13 matter. 01106_ Ion Engine destroyed. 01108_ Com. Wheel destroyed. 01121_ Acquired 11 matter. 01128_ Acquired 9 matter. Mak. Axe falls loose from the Twisted Machinery. 01136_ Acquired Mak. Axe. 01143_ Med. Laser destroyed. Mak. Light Armor Plating falls loose from the Twisted Machinery. 01164_ Acquired Mak. Light Armor Plating. Map ----- +----------------------------------------------------+ | | | ?????????????????????????????????????????????????? | | ?????????????????????????????????????????????????? | | ?????????????????????????????????????????????????? | | ?????????????????????????????????????????????????? | | ?????????????????????????????????????????????????? | | ?????????????????????????????????????????????????? | | ?????????????????????????????????????????????????? | | ?????????????????????????????????????????????????? | | ?????????????????????????????????????????????????? | | ?????????????????????????????????????????????????? | | ?????????????????????????????????????????????????? | | ?????????????????????????????????????????????????? | | ?????????????????????????????????????????????????? | | ?????????????????????????????????????????????????? | | ??????????????????????????????????????????????#### | | ????????????? ??????####?########???????????? # | | ??????????????? #####""### # ## #????????????# # | | ????????????????? """"%% % #???????####?# | | ????????????????? ## #%## ##### #?####### ### | | ????????????????????#?# ####??# ###"#" # | | ??????????????????????## #?????# | | ?????????????????# ### ##????# ### ### # ### | | ?????????????????#% "##???##??###?### ###?? | | ?????????????????# ###RRR##????????????#% #???? | | ?????????????????##"???#"@R #???????????# #???? | | ??????????????????#??#### #??????????# % ##???? | | ?????????????????????#""""RR#??????????######????? | | ????????????????????#""""O""#????????????????????? | | ????????????????????#""## ##????????????????????? | | ?????????????????????"??"""#?????????????????????? | | ???????????????????????#""##?????????????????????? | | ??????????????????????? ??????????????????????? | | ?????????????????????? ???????????????????????? | | ?????????????????????? #???????????????????????? | | ??????????????????????? #????????????????????????? | | ?????????????????????????????????????????????????? | | ?????????????????????????????????????????????????? | | ?????????????????????????????????????????????????? | | ?????????????????????????????????????????????????? | | ?????????????????????????????????????????????????? | | ?????????????????????????????????????????????????? | | ?????????????????????????????????????????????????? | | ?????????????????????????????????????????????????? | | ?????????????????????????????????????????????????? | | ?????????????????????????????????????????????????? | | ?????????????????????????????????????????????????? | | ?????????????????????????????????????????????????? | | ?????????????????????????????????????????????????? | | ?????????????????????????????????????????????????? | +----------------------------------------------------+ Best States ------------- Heat Dissipation 25 Energy Generation 10 Energy Capacity 250 Matter Stores 300 Matter Capacity 300 Sight Range 16 Terrain Scan Density 10 ECM Strength 1 Evasion (%) 50 Item Schematics ----------------- None Robot Schematics ------------------ None Fabricated ------------ Nothing Alien Tech Used ----------------- None Achievements -------------- None Challenges ------------ None Game ------ Seed RecyclingNodeModule Manual? 0 Play Time 00:09:55 Cumulative 194.4 hours Start 2025.01.16 @ 11:51:08 End 2025.01.16 @ 12:07:56 Sessions 1 Manual Loads 0 Difficulty Rogue Special Mode None Game No. 268 Rogue 268 Adventurer 0 Explorer 0 Win Type - Total 1 Types 1/0/0/0/0/0/0/0/0 Lore% 33 Gallery% 62 Achievement% 42 Wizard Run 0 Options --------- Layout 1 ASCII 0 Keyboard 0 Movement Mouse Keybinds 0 Fullscreen 2 Font 24/Smallcaps Map View 50x35 Zoom Use 0% Tactical HUD 1 Map Filters NONE Filters NONE Steam 1 RUN: a3c7aa32-15c8-4d8c-a906-3d26c85c89a6